[Event "Late-Titled-Tuesday-Blitz-September-12-2023"]
[Site "Chess.com"]
[Date "2023.09.12"]
[Round "10"]
[White "Bigfish1995"]
[Black "tptagain"]
[Result "1-0"]
[WhiteElo "3074"]
[BlackElo "2958"]
[TimeControl "180+1"]
[EndTime "15:49:40 PDT"]
[Termination "Bigfish1995 won on time"]

1. h3 {[%clk 0:03:00.9]} 1... d5 {[%clk 0:02:59.5]} 2. Nf3 {[%clk 0:03:00.2]}
2... Nc6 {[%clk 0:02:59]} 3. d4 {[%clk 0:02:59.9]} 3... Bf5 {[%clk 0:02:59]} 4.
a3 {[%clk 0:03:00.3]} 4... e6 {[%clk 0:02:58.5]} 5. e3 {[%clk 0:02:58.3]} 5...
a6 {[%clk 0:02:57.2]} 6. c4 {[%clk 0:02:57.8]} 6... h6 {[%clk 0:02:55.9]} 7. Qb3
{[%clk 0:02:55.1]} 7... Nf6 {[%clk 0:02:48.7]} 8. Bd2 {[%clk 0:02:55.5]} 8...
Rb8 {[%clk 0:02:44]} 9. Nc3 {[%clk 0:02:53.7]} 9... dxc4 {[%clk 0:02:27.7]} 10.
Bxc4 {[%clk 0:02:45.4]} 10... Bd6 {[%clk 0:02:10.5]} 11. Qa2 {[%clk 0:02:30.2]}
11... b5 {[%clk 0:02:06.1]} 12. Be2 {[%clk 0:02:24]} 12... O-O {[%clk
0:01:51.4]} 13. O-O {[%clk 0:02:14.4]} 13... e5 {[%clk 0:01:40.8]} 14. dxe5
{[%clk 0:02:08]} 14... Nxe5 {[%clk 0:01:41.7]} 15. Nd4 {[%clk 0:01:59.3]} 15...
Bd7 {[%clk 0:01:21.4]} 16. b4 {[%clk 0:01:55.3]} 16... c5 {[%clk 0:01:17]} 17.
bxc5 {[%clk 0:01:54.9]} 17... Bxc5 {[%clk 0:01:17.9]} 18. Rfd1 {[%clk
0:01:50.8]} 18... Qe7 {[%clk 0:01:17.6]} 19. Nd5 {[%clk 0:01:33.1]} 19... Qd6
{[%clk 0:00:58.4]} 20. Nxf6+ {[%clk 0:01:29.8]} 20... Qxf6 {[%clk 0:00:59.3]}
21. Bb4 {[%clk 0:01:30.1]} 21... Rfc8 {[%clk 0:00:53.8]} 22. Qd5 {[%clk
0:01:29]} 22... Bxb4 {[%clk 0:00:28.7]} 23. axb4 {[%clk 0:01:29.9]} 23... Rd8
{[%clk 0:00:24.2]} 24. Qe4 {[%clk 0:01:21.8]} 24... Bc8 {[%clk 0:00:22.9]} 25.
Qf4 {[%clk 0:00:49.3]} 25... Qxf4 {[%clk 0:00:22.8]} 26. exf4 {[%clk 0:00:49.5]}
26... Nc4 {[%clk 0:00:18.6]} 27. Nc6 {[%clk 0:00:46.1]} 27... Rxd1+ {[%clk
0:00:17.4]} 28. Rxd1 {[%clk 0:00:47]} 28... Ra8 {[%clk 0:00:17.7]} 29. Bf3
{[%clk 0:00:32.9]} 29... Kh7 {[%clk 0:00:11.1]} 30. Ne7 {[%clk 0:00:31.9]} 30...
Rb8 {[%clk 0:00:11.2]} 31. Rd8 {[%clk 0:00:31.5]} 31... Nb6 {[%clk 0:00:11.1]}
32. Bg4 {[%clk 0:00:28.4]} 32... Rb7 {[%clk 0:00:02.6]} 33. Nxc8 {[%clk
0:00:28.3]} 1-0

[Event "Late-Titled-Tuesday-Blitz-September-12-2023"]
[Site "Chess.com"]
[Date "2023.09.12"]
[Round "10"]
[White "pokochajszachy"]
[Black "PepeCuenca"]
[Result "0-1"]
[WhiteElo "2399"]
[BlackElo "2719"]
[TimeControl "180+1"]
[EndTime "15:49:43 PDT"]
[Termination "PepeCuenca won by resignation"]

1. d4 {[%clk 0:03:00.9]} 1... d6 {[%clk 0:02:58.1]} 2. Nf3 {[%clk 0:03:00]} 2...
Nf6 {[%clk 0:02:58.4]} 3. c4 {[%clk 0:03:00.3]} 3... g6 {[%clk 0:02:58.9]} 4.
Nc3 {[%clk 0:03:00.7]} 4... Bg7 {[%clk 0:02:59.7]} 5. e4 {[%clk 0:03:01.3]} 5...
O-O {[%clk 0:03:00.3]} 6. Be2 {[%clk 0:03:02]} 6... Bg4 {[%clk 0:03:01]} 7. Nd2
{[%clk 0:03:01.3]} 7... Bxe2 {[%clk 0:02:59.1]} 8. Qxe2 {[%clk 0:03:02.2]} 8...
Nc6 {[%clk 0:02:57.7]} 9. Nf3 {[%clk 0:03:01.2]} 9... Nd7 {[%clk 0:02:56.9]} 10.
Be3 {[%clk 0:03:00.4]} 10... e5 {[%clk 0:02:54.7]} 11. Qd2 {[%clk 0:02:59.3]}
11... f5 {[%clk 0:02:20.7]} 12. Bg5 {[%clk 0:02:57.5]} 12... Qe8 {[%clk
0:02:16.1]} 13. dxe5 {[%clk 0:02:55.5]} 13... Ndxe5 {[%clk 0:02:08.7]} 14. Nxe5
{[%clk 0:02:35.3]} 14... Nxe5 {[%clk 0:02:04.4]} 15. b3 {[%clk 0:02:22.3]} 15...
fxe4 {[%clk 0:01:31.5]} 16. O-O {[%clk 0:01:25]} 16... Nf7 {[%clk 0:01:17.1]}
17. Be3 {[%clk 0:01:18.5]} 17... Qe5 {[%clk 0:01:11.1]} 18. Nb5 {[%clk
0:01:06.9]} 18... c6 {[%clk 0:00:52.3]} 19. Bd4 {[%clk 0:01:01.8]} 19... Qe7
{[%clk 0:00:50.8]} 20. Bxg7 {[%clk 0:00:58.2]} 20... Kxg7 {[%clk 0:00:51.7]} 21.
Qd4+ {[%clk 0:00:55]} 21... Qf6 {[%clk 0:00:31.7]} 22. Qxf6+ {[%clk 0:00:29.8]}
22... Kxf6 {[%clk 0:00:32.6]} 23. Nc3 {[%clk 0:00:30.4]} 23... Rfe8 {[%clk
0:00:31.6]} 24. Rae1 {[%clk 0:00:28.3]} 24... Kf5 {[%clk 0:00:30.2]} 25. f3
{[%clk 0:00:28.3]} 25... e3 {[%clk 0:00:30.4]} 26. Ne4 {[%clk 0:00:25.9]} 26...
d5 {[%clk 0:00:28.9]} 27. cxd5 {[%clk 0:00:16.4]} 27... cxd5 {[%clk 0:00:29.1]}
28. Ng3+ {[%clk 0:00:10.5]} 28... Kf6 {[%clk 0:00:29.5]} 29. Rd1 {[%clk
0:00:09.8]} 29... e2 {[%clk 0:00:28.4]} 30. Nxe2 {[%clk 0:00:09.8]} 30... Rxe2
{[%clk 0:00:28.7]} 31. Rxd5 {[%clk 0:00:10]} 31... Rc8 {[%clk 0:00:23.2]} 32.
Rf2 {[%clk 0:00:03.3]} 32... Rc1+ {[%clk 0:00:20.7]} 33. Rf1 {[%clk 0:00:04.2]}
33... Rcc2 {[%clk 0:00:20.5]} 0-1

[Event "Late-Titled-Tuesday-Blitz-September-12-2023"]
[Site "Chess.com"]
[Date "2023.09.12"]
[Round "10"]
[White "Garmendiarov"]
[Black "WPWPWP-2015"]
[Result "1-0"]
[WhiteElo "2371"]
[BlackElo "2513"]
[TimeControl "180+1"]
[EndTime "15:49:43 PDT"]
[Termination "Garmendiarov won by checkmate"]

1. e4 {[%clk 0:03:00.9]} 1... c5 {[%clk 0:02:59]} 2. Nf3 {[%clk 0:03:01.3]} 2...
d6 {[%clk 0:02:58.8]} 3. d4 {[%clk 0:03:01.7]} 3... cxd4 {[%clk 0:02:58.9]} 4.
Nxd4 {[%clk 0:03:02.6]} 4... Nf6 {[%clk 0:02:59]} 5. Nc3 {[%clk 0:03:03.3]} 5...
a6 {[%clk 0:02:59.2]} 6. Rg1 {[%clk 0:03:03.4]} 6... e6 {[%clk 0:02:58.5]} 7. g4
{[%clk 0:03:02.4]} 7... h5 {[%clk 0:02:58.1]} 8. g5 {[%clk 0:03:02.3]} 8... Ng4
{[%clk 0:02:57.6]} 9. h3 {[%clk 0:02:56]} 9... Ne5 {[%clk 0:02:56.3]} 10. Be2
{[%clk 0:02:50.6]} 10... g6 {[%clk 0:02:55.1]} 11. Be3 {[%clk 0:02:47.6]} 11...
Bg7 {[%clk 0:02:54.1]} 12. Qd2 {[%clk 0:02:45.1]} 12... Nbc6 {[%clk 0:02:52.9]}
13. O-O-O {[%clk 0:02:39.9]} 13... Qc7 {[%clk 0:02:42.1]} 14. f4 {[%clk
0:02:38.5]} 14... Nd7 {[%clk 0:02:35.5]} 15. Nxc6 {[%clk 0:02:33.7]} 15... Qxc6
{[%clk 0:02:35.1]} 16. Qxd6 {[%clk 0:02:33.3]} 16... Qxd6 {[%clk 0:02:34.6]} 17.
Rxd6 {[%clk 0:02:33]} 17... Bf8 {[%clk 0:02:32.1]} 18. Rd2 {[%clk 0:02:26.3]}
18... Bb4 {[%clk 0:02:29.2]} 19. Bd4 {[%clk 0:02:22.2]} 19... O-O {[%clk
0:02:27.5]} 20. a4 {[%clk 0:02:21.8]} 20... Re8 {[%clk 0:02:24.8]} 21. e5 {[%clk
0:02:17.9]} 21... b5 {[%clk 0:02:19.1]} 22. Bf3 {[%clk 0:02:11.6]} 22... Rb8
{[%clk 0:02:14.9]} 23. Ba7 {[%clk 0:02:09.1]} 23... Bxc3 {[%clk 0:02:11.9]} 24.
bxc3 {[%clk 0:02:10]} 24... bxa4 {[%clk 0:02:12]} 25. Bxb8 {[%clk 0:02:09.5]}
25... Nxb8 {[%clk 0:02:11.5]} 26. Rgd1 {[%clk 0:02:03.6]} 26... Kf8 {[%clk
0:02:11]} 27. Rd8 {[%clk 0:02:01.6]} 27... Ke7 {[%clk 0:02:10.8]} 28. Rxe8+
{[%clk 0:01:57.9]} 28... Kxe8 {[%clk 0:02:11.7]} 29. Kb2 {[%clk 0:01:52.2]}
29... Bd7 {[%clk 0:02:04.5]} 30. Rd6 {[%clk 0:01:49.5]} 30... Bb5 {[%clk
0:02:01.4]} 31. Ka3 {[%clk 0:01:35]} 31... Ke7 {[%clk 0:01:58.4]} 32. Kb4 {[%clk
0:01:32.1]} 32... Be8 {[%clk 0:01:53.4]} 33. c4 {[%clk 0:01:27.3]} 33... a5+
{[%clk 0:01:38.2]} 34. Ka3 {[%clk 0:01:11.9]} 34... Nd7 {[%clk 0:01:37.3]} 35.
Bc6 {[%clk 0:01:09.9]} 35... Nc5 {[%clk 0:01:36]} 36. Bxe8 {[%clk 0:01:08.4]}
36... Kxe8 {[%clk 0:01:35.9]} 37. Rc6 {[%clk 0:01:07.7]} 37... Ne4 {[%clk
0:01:35.4]} 38. Kxa4 {[%clk 0:01:05.8]} 38... Nc3+ {[%clk 0:01:30.4]} 39. Kxa5
{[%clk 0:01:05]} 39... Ne2 {[%clk 0:01:30]} 40. c5 {[%clk 0:00:58.3]} 40... Nxf4
{[%clk 0:01:26.5]} 41. Rd6 {[%clk 0:00:55.7]} 41... Nxh3 {[%clk 0:01:22.8]} 42.
c6 {[%clk 0:00:54.5]} 42... Nxg5 {[%clk 0:01:08.7]} 43. c7 {[%clk 0:00:53.8]}
43... Kf8 {[%clk 0:01:09]} 44. c8=Q+ {[%clk 0:00:53.6]} 44... Kg7 {[%clk
0:01:09.3]} 45. Qd8 {[%clk 0:00:52.1]} 45... Nh7 {[%clk 0:01:08.2]} 46. Rd7
{[%clk 0:00:50.7]} 46... h4 {[%clk 0:00:50.7]} 47. Qe7 {[%clk 0:00:46.2]} 47...
Kh6 {[%clk 0:00:47.7]} 48. Qxh4+ {[%clk 0:00:45.6]} 48... Kg7 {[%clk 0:00:47.5]}
49. Qe7 {[%clk 0:00:44.9]} 49... Kh6 {[%clk 0:00:47.9]} 50. Qxf7 {[%clk
0:00:44.7]} 50... Ng5 {[%clk 0:00:48.4]} 51. Qf4 {[%clk 0:00:41.5]} 51... Kh5
{[%clk 0:00:48.3]} 52. Rd8 {[%clk 0:00:33]} 52... Nh7 {[%clk 0:00:45]} 53. Rh8
{[%clk 0:00:30.8]} 53... g5 {[%clk 0:00:45.4]} 54. Rxh7+ {[%clk 0:00:30.9]}
54... Kg6 {[%clk 0:00:45.7]} 55. Qf7# {[%clk 0:00:31]} 1-0

[Event "Late-Titled-Tuesday-Blitz-September-12-2023"]
[Site "Chess.com"]
[Date "2023.09.12"]
[Round "10"]
[White "Ali_rastbod"]
[Black "AndreiITrifan"]
[Result "0-1"]
[WhiteElo "2706"]
[BlackElo "2669"]
[TimeControl "180+1"]
[EndTime "15:49:45 PDT"]
[Termination "AndreiITrifan won by resignation"]

1. e4 {[%clk 0:02:44.5]} 1... e5 {[%clk 0:02:59.7]} 2. Nf3 {[%clk 0:02:43.1]}
2... Nc6 {[%clk 0:02:59.9]} 3. Nc3 {[%clk 0:02:43.5]} 3... Nf6 {[%clk
0:02:59.7]} 4. h3 {[%clk 0:02:44.1]} 4... Bb4 {[%clk 0:02:56]} 5. Bd3 {[%clk
0:02:43.5]} 5... d6 {[%clk 0:02:50.9]} 6. Ne2 {[%clk 0:02:38.4]} 6... h6 {[%clk
0:02:48.4]} 7. Ng3 {[%clk 0:02:36.9]} 7... a6 {[%clk 0:02:46.6]} 8. c3 {[%clk
0:02:36.8]} 8... Bc5 {[%clk 0:02:44.9]} 9. Bc2 {[%clk 0:02:36.6]} 9... Ba7
{[%clk 0:02:42.9]} 10. a3 {[%clk 0:02:33.3]} 10... Qe7 {[%clk 0:02:37.9]} 11.
O-O {[%clk 0:02:29.5]} 11... g5 {[%clk 0:02:34.5]} 12. d4 {[%clk 0:02:11.3]}
12... g4 {[%clk 0:02:33.1]} 13. Nh4 {[%clk 0:02:12]} 13... exd4 {[%clk
0:02:17.1]} 14. Ngf5 {[%clk 0:02:04.2]} 14... Qe5 {[%clk 0:02:14.1]} 15. f4
{[%clk 0:01:46.9]} 15... gxf3 {[%clk 0:02:07.5]} 16. Nxf3 {[%clk 0:01:46]} 16...
dxc3+ {[%clk 0:01:45.4]} 17. Kh1 {[%clk 0:01:45.1]} 17... cxb2 {[%clk
0:01:44.2]} 18. Nxe5 {[%clk 0:01:28.6]} 18... bxa1=Q {[%clk 0:01:42.3]} 19. Nxc6
{[%clk 0:01:25.5]} 19... bxc6 {[%clk 0:01:43.2]} 20. Nxd6+ {[%clk 0:01:26]}
20... cxd6 {[%clk 0:01:37.9]} 21. Qxd6 {[%clk 0:01:26.9]} 21... Bd7 {[%clk
0:01:28.6]} 22. e5 {[%clk 0:00:28.1]} 22... Bb8 {[%clk 0:00:23.1]} 23. Qb4
{[%clk 0:00:07]} 23... Bxe5 {[%clk 0:00:19.9]} 24. Bd3 {[%clk 0:00:07.1]} 24...
Qd4 {[%clk 0:00:18]} 25. Qb3 {[%clk 0:00:04.2]} 25... Rb8 {[%clk 0:00:17.7]} 26.
Qc2 {[%clk 0:00:04.3]} 26... Qc3 {[%clk 0:00:17.9]} 27. Qd1 {[%clk 0:00:04.4]}
27... Be6 {[%clk 0:00:16.6]} 28. Be3 {[%clk 0:00:04.4]} 28... Rd8 {[%clk
0:00:15.7]} 29. Qa4 {[%clk 0:00:03.1]} 29... Rxd3 {[%clk 0:00:15.2]} 0-1

[Event "Late-Titled-Tuesday-Blitz-September-12-2023"]
[Site "Chess.com"]
[Date "2023.09.12"]
[Round "10"]
[White "infinitegiantkiller"]
[Black "petr577"]
[Result "0-1"]
[WhiteElo "2443"]
[BlackElo "2348"]
[TimeControl "180+1"]
[EndTime "15:49:56 PDT"]
[Termination "petr577 won by resignation"]

1. Nf3 {[%clk 0:03:00.9]} 1... Nf6 {[%clk 0:02:57]} 2. g3 {[%clk 0:03:01.8]}
2... g6 {[%clk 0:02:57.4]} 3. Bg2 {[%clk 0:03:02.7]} 3... Bg7 {[%clk 0:02:57.9]}
4. O-O {[%clk 0:03:03.6]} 4... O-O {[%clk 0:02:58.4]} 5. b3 {[%clk 0:03:04.3]}
5... d6 {[%clk 0:02:58.8]} 6. Bb2 {[%clk 0:03:04.6]} 6... Nbd7 {[%clk
0:02:59.4]} 7. d4 {[%clk 0:03:05.3]} 7... Re8 {[%clk 0:02:54.3]} 8. d5 {[%clk
0:03:02.5]} 8... a5 {[%clk 0:02:39]} 9. a3 {[%clk 0:02:57]} 9... a4 {[%clk
0:02:35.6]} 10. b4 {[%clk 0:02:57]} 10... Nb6 {[%clk 0:02:35.7]} 11. Ne1 {[%clk
0:02:46]} 11... Nc4 {[%clk 0:02:17.3]} 12. Bc3 {[%clk 0:02:43.6]} 12... b5
{[%clk 0:02:16.2]} 13. Nd2 {[%clk 0:02:35.5]} 13... Nxd2 {[%clk 0:02:15.4]} 14.
Qxd2 {[%clk 0:02:36.4]} 14... Bb7 {[%clk 0:02:14.7]} 15. e4 {[%clk 0:02:32.4]}
15... c6 {[%clk 0:02:03.4]} 16. dxc6 {[%clk 0:02:19.1]} 16... Bxc6 {[%clk
0:02:04.3]} 17. f3 {[%clk 0:02:10.4]} 17... Rc8 {[%clk 0:01:59.3]} 18. Nd3
{[%clk 0:02:08.6]} 18... Qb6+ {[%clk 0:01:13.3]} 19. Nf2 {[%clk 0:02:03.2]}
19... Rc7 {[%clk 0:01:02.6]} 20. Bd4 {[%clk 0:02:01.8]} 20... Qb7 {[%clk
0:01:02.7]} 21. Rac1 {[%clk 0:01:57.6]} 21... Rec8 {[%clk 0:01:00.7]} 22. Nd3
{[%clk 0:01:36.9]} 22... Nxe4 {[%clk 0:00:54.9]} 23. fxe4 {[%clk 0:01:36.9]}
23... Bxd4+ {[%clk 0:00:54.5]} 24. Kh1 {[%clk 0:01:37.5]} 24... Bxe4 {[%clk
0:00:54.1]} 25. Nf4 {[%clk 0:01:31.5]} 25... Bxg2+ {[%clk 0:00:47.2]} 26. Nxg2
{[%clk 0:01:32.4]} 26... Be5 {[%clk 0:00:40.7]} 27. Qf2 {[%clk 0:01:25.5]} 27...
f6 {[%clk 0:00:37]} 28. h4 {[%clk 0:01:21.6]} 28... Qe4 {[%clk 0:00:35.3]} 29.
Rce1 {[%clk 0:01:08.5]} 29... Qg4 {[%clk 0:00:23.9]} 30. Kh2 {[%clk 0:00:44.7]}
30... Rxc2 {[%clk 0:00:22.6]} 31. Qe3 {[%clk 0:00:40.9]} 31... Qxh4+ {[%clk
0:00:21.2]} 32. Kg1 {[%clk 0:00:38.9]} 32... Qxg3 {[%clk 0:00:20.5]} 33. Qxg3
{[%clk 0:00:36.8]} 33... Bxg3 {[%clk 0:00:21.4]} 34. Rxe7 {[%clk 0:00:37]} 34...
R8c7 {[%clk 0:00:20.5]} 35. Re8+ {[%clk 0:00:31.9]} 35... Kf7 {[%clk 0:00:20.1]}
36. Rh8 {[%clk 0:00:32.2]} 36... Ke6 {[%clk 0:00:19.5]} 37. Rb8 {[%clk
0:00:31.8]} 37... h5 {[%clk 0:00:18.6]} 38. Rxb5 {[%clk 0:00:27.6]} 38... h4
{[%clk 0:00:19]} 39. Nf4+ {[%clk 0:00:27.4]} 39... Bxf4 {[%clk 0:00:17.9]} 40.
Rxf4 {[%clk 0:00:28.3]} 40... h3 {[%clk 0:00:16.9]} 41. Re4+ {[%clk 0:00:23.9]}
41... Kf7 {[%clk 0:00:16.5]} 42. Rd5 {[%clk 0:00:24]} 42... Rg2+ {[%clk
0:00:16]} 43. Kf1 {[%clk 0:00:22.6]} 43... Rc1+ {[%clk 0:00:16.2]} 44. Re1
{[%clk 0:00:21.5]} 44... Rxe1+ {[%clk 0:00:16.7]} 45. Kxe1 {[%clk 0:00:22.4]}
45... h2 {[%clk 0:00:17.2]} 0-1

[Event "Late-Titled-Tuesday-Blitz-September-12-2023"]
[Site "Chess.com"]
[Date "2023.09.12"]
[Round "10"]
[White "PawnEatingZombie"]
[Black "fyall777"]
[Result "1-0"]
[WhiteElo "2210"]
[BlackElo "2567"]
[TimeControl "180+1"]
[EndTime "15:49:58 PDT"]
[Termination "PawnEatingZombie won by checkmate"]

1. e4 {[%clk 0:03:00.9]} 1... c6 {[%clk 0:03:00]} 2. d4 {[%clk 0:02:57.6]} 2...
d5 {[%clk 0:03:00.9]} 3. exd5 {[%clk 0:02:57.4]} 3... cxd5 {[%clk 0:01:48.2]} 4.
Nf3 {[%clk 0:02:56]} 4... Nc6 {[%clk 0:01:49.1]} 5. c3 {[%clk 0:02:55.5]} 5...
Nf6 {[%clk 0:01:48.4]} 6. Be3 {[%clk 0:02:55.3]} 6... Bg4 {[%clk 0:01:48.8]} 7.
Nbd2 {[%clk 0:02:53.6]} 7... e6 {[%clk 0:01:48.8]} 8. h3 {[%clk 0:02:53.4]} 8...
Bh5 {[%clk 0:01:48.8]} 9. g4 {[%clk 0:02:54.1]} 9... Bg6 {[%clk 0:01:48.4]} 10.
Nh4 {[%clk 0:02:54.7]} 10... Bd6 {[%clk 0:01:46.2]} 11. Nxg6 {[%clk 0:02:54.2]}
11... hxg6 {[%clk 0:01:46.3]} 12. Qf3 {[%clk 0:02:54.1]} 12... e5 {[%clk
0:01:46]} 13. Nb3 {[%clk 0:02:44.5]} 13... e4 {[%clk 0:01:44.9]} 14. Qg2 {[%clk
0:02:44.6]} 14... a5 {[%clk 0:01:44.5]} 15. a4 {[%clk 0:02:40.7]} 15... Qb6
{[%clk 0:01:44.4]} 16. Bb5 {[%clk 0:02:40.8]} 16... Nd7 {[%clk 0:01:35.5]} 17.
f3 {[%clk 0:02:19]} 17... Na7 {[%clk 0:01:35.3]} 18. Bxd7+ {[%clk 0:01:34.6]}
18... Kxd7 {[%clk 0:01:34.5]} 19. Nd2 {[%clk 0:01:11.9]} 19... Qxb2 {[%clk
0:01:33.6]} 20. Rb1 {[%clk 0:00:44.5]} 20... Qxc3 {[%clk 0:01:33.4]} 21. Rb3
{[%clk 0:00:45.1]} 21... exf3 {[%clk 0:01:30.6]} 22. Qxf3 {[%clk 0:00:43.3]}
22... Qa1+ {[%clk 0:01:29.8]} 23. Ke2 {[%clk 0:00:42.1]} 23... Qxa4 {[%clk
0:01:26.5]} 24. Qxf7+ {[%clk 0:00:38.2]} 24... Kc8 {[%clk 0:01:26.1]} 25. Qxb7+
{[%clk 0:00:37]} 25... Kd8 {[%clk 0:01:25.8]} 26. Qxa8+ {[%clk 0:00:29.7]} 26...
Nc8 {[%clk 0:01:25.8]} 27. Qxd5 {[%clk 0:00:27.9]} 27... Re8 {[%clk 0:01:25.4]}
28. Rc1 {[%clk 0:00:17.7]} 28... Qd7 {[%clk 0:01:24.9]} 29. Ne4 {[%clk
0:00:11.1]} 29... Bb4 {[%clk 0:01:20.6]} 30. Rxc8+ {[%clk 0:00:08.7]} 30... Kxc8
{[%clk 0:01:20.3]} 31. Qa8+ {[%clk 0:00:08.1]} 31... Kc7 {[%clk 0:01:19.5]} 32.
Qa7+ {[%clk 0:00:07.9]} 32... Kd8 {[%clk 0:01:18.2]} 33. Qxd7+ {[%clk 0:00:08]}
33... Kxd7 {[%clk 0:01:18.4]} 34. Nc5+ {[%clk 0:00:06.9]} 34... Kc6 {[%clk
0:01:18.6]} 35. Kd3 {[%clk 0:00:06.3]} 35... Kb5 {[%clk 0:01:18.5]} 36. Rb1
{[%clk 0:00:05.1]} 36... Rf8 {[%clk 0:01:17.2]} 37. Ne4 {[%clk 0:00:05.3]} 37...
Rf3 {[%clk 0:01:16.7]} 38. Rc1 {[%clk 0:00:04]} 38... Rxh3 {[%clk 0:01:14.7]}
39. Rc7 {[%clk 0:00:03.9]} 39... Ka4 {[%clk 0:01:14.7]} 40. Rxg7 {[%clk
0:00:04.2]} 40... Kb3 {[%clk 0:01:12.2]} 41. Rxg6 {[%clk 0:00:04.3]} 41... a4
{[%clk 0:01:13.1]} 42. Ra6 {[%clk 0:00:03.8]} 42... a3 {[%clk 0:01:13.1]} 43.
Nc5+ {[%clk 0:00:03.2]} 43... Bxc5 {[%clk 0:01:13.1]} 44. dxc5 {[%clk
0:00:03.5]} 44... a2 {[%clk 0:01:13.9]} 45. c6 {[%clk 0:00:03.8]} 45... Rh7
{[%clk 0:01:11.7]} 46. Bf4 {[%clk 0:00:03.1]} 46... Rh3+ {[%clk 0:01:10.7]} 47.
Ke4 {[%clk 0:00:02.7]} 47... Kb2 {[%clk 0:01:09.8]} 48. c7 {[%clk 0:00:02.8]}
48... Kb1 {[%clk 0:01:10.7]} 49. c8=Q {[%clk 0:00:02.6]} 49... Rb3 {[%clk
0:01:10.7]} 50. Qe6 {[%clk 0:00:01.7]} 50... Rb4+ {[%clk 0:01:10.7]} 51. Kf5
{[%clk 0:00:01.5]} 51... Rb5+ {[%clk 0:01:10.3]} 52. Be5 {[%clk 0:00:02]} 52...
Rb2 {[%clk 0:01:08.4]} 53. Qxa2+ {[%clk 0:00:01.6]} 53... Rxa2 {[%clk
0:01:07.7]} 54. Rxa2 {[%clk 0:00:02.5]} 54... Kxa2 {[%clk 0:01:07.5]} 55. g5
{[%clk 0:00:03.4]} 55... Kb3 {[%clk 0:01:08.1]} 56. g6 {[%clk 0:00:04.3]} 56...
Kc4 {[%clk 0:01:08.8]} 57. g7 {[%clk 0:00:05.2]} 57... Kd5 {[%clk 0:01:09.4]}
58. g8=Q+ {[%clk 0:00:06.1]} 58... Kc5 {[%clk 0:01:09]} 59. Qe6 {[%clk 0:00:07]}
59... Kb4 {[%clk 0:01:08.7]} 60. Qd6+ {[%clk 0:00:07.9]} 60... Kc4 {[%clk
0:01:08.5]} 61. Qc7+ {[%clk 0:00:08.4]} 61... Kd3 {[%clk 0:01:08.6]} 62. Qc3+
{[%clk 0:00:08.2]} 62... Ke2 {[%clk 0:01:08.9]} 63. Ke4 {[%clk 0:00:07.5]} 63...
Kf1 {[%clk 0:01:09.8]} 64. Qb2 {[%clk 0:00:07.1]} 64... Ke1 {[%clk 0:01:09.6]}
65. Ke3 {[%clk 0:00:06.9]} 65... Kd1 {[%clk 0:01:09.7]} 66. Qd2# {[%clk
0:00:06.8]} 1-0

[Event "Late-Titled-Tuesday-Blitz-September-12-2023"]
[Site "Chess.com"]
[Date "2023.09.12"]
[Round "10"]
[White "sergiochess83"]
[Black "mishanick"]
[Result "0-1"]
[WhiteElo "2930"]
[BlackElo "3067"]
[TimeControl "180+1"]
[EndTime "15:49:59 PDT"]
[Termination "mishanick won on time"]

1. d4 {[%clk 0:02:54.8]} 1... Nf6 {[%clk 0:02:59.9]} 2. c4 {[%clk 0:02:54.9]}
2... e6 {[%clk 0:03:00.5]} 3. Nf3 {[%clk 0:02:53.8]} 3... d5 {[%clk 0:03:01]} 4.
g3 {[%clk 0:02:53.9]} 4... Be7 {[%clk 0:03:00.8]} 5. Bg2 {[%clk 0:02:53.7]} 5...
O-O {[%clk 0:03:01.5]} 6. O-O {[%clk 0:02:53.9]} 6... dxc4 {[%clk 0:03:02.2]} 7.
Qc2 {[%clk 0:02:53.8]} 7... a6 {[%clk 0:03:02.6]} 8. a4 {[%clk 0:02:41.4]} 8...
Bd7 {[%clk 0:03:02.8]} 9. Qxc4 {[%clk 0:02:39.6]} 9... b5 {[%clk 0:03:03.2]} 10.
Qc2 {[%clk 0:02:34]} 10... Nc6 {[%clk 0:03:03.1]} 11. axb5 {[%clk 0:02:27.7]}
11... Nb4 {[%clk 0:03:02.9]} 12. Qb3 {[%clk 0:02:23.4]} 12... Bxb5 {[%clk
0:03:01]} 13. Nc3 {[%clk 0:02:23.6]} 13... Bc6 {[%clk 0:02:56.9]} 14. Bg5 {[%clk
0:02:10.1]} 14... Rb8 {[%clk 0:02:45.3]} 15. Qc4 {[%clk 0:01:56.7]} 15... h6
{[%clk 0:02:29.6]} 16. Bxf6 {[%clk 0:01:53.8]} 16... Bxf6 {[%clk 0:02:30.5]} 17.
e3 {[%clk 0:01:17.8]} 17... Qd6 {[%clk 0:02:11.2]} 18. Rfc1 {[%clk 0:01:15.5]}
18... Rfc8 {[%clk 0:01:58.2]} 19. Nd2 {[%clk 0:01:14.7]} 19... Bd5 {[%clk
0:01:55]} 20. Nxd5 {[%clk 0:01:04]} 20... exd5 {[%clk 0:01:55.9]} 21. Qe2 {[%clk
0:00:54.7]} 21... c5 {[%clk 0:01:52.2]} 22. Rxc5 {[%clk 0:00:37.4]} 22... Rxc5
{[%clk 0:01:53.1]} 23. dxc5 {[%clk 0:00:38]} 23... Qxc5 {[%clk 0:01:53.2]} 24.
Rb1 {[%clk 0:00:15.9]} 24... Qc2 {[%clk 0:01:49.8]} 25. Qd1 {[%clk 0:00:09.2]}
25... Qxd1+ {[%clk 0:01:13.1]} 26. Rxd1 {[%clk 0:00:10.1]} 26... Bxb2 {[%clk
0:01:13.5]} 27. Nb3 {[%clk 0:00:10.4]} 27... Rb6 {[%clk 0:01:08.3]} 28. Na5
{[%clk 0:00:10]} 28... Rb5 {[%clk 0:01:05.4]} 29. Nb3 {[%clk 0:00:07.9]} 29...
g6 {[%clk 0:00:46.4]} 30. Bf1 {[%clk 0:00:08]} 30... Rb6 {[%clk 0:00:46.9]} 31.
h4 {[%clk 0:00:06.3]} 31... h5 {[%clk 0:00:46.9]} 32. Nc5 {[%clk 0:00:06]} 32...
Rc6 {[%clk 0:00:38.5]} 33. Nd3 {[%clk 0:00:03.1]} 33... Nxd3 {[%clk 0:00:26.3]}
34. Rxd3 {[%clk 0:00:04]} 34... a5 {[%clk 0:00:22.5]} 35. Rxd5 {[%clk
0:00:04.2]} 35... a4 {[%clk 0:00:23]} 36. Ra5 {[%clk 0:00:04.4]} 36... a3 {[%clk
0:00:23.5]} 37. Bg2 {[%clk 0:00:04]} 37... Rd6 {[%clk 0:00:21.8]} 38. Be4 {[%clk
0:00:02.9]} 38... Rd2 {[%clk 0:00:21]} 39. Ra7 {[%clk 0:00:01.4]} 39... Bc1
{[%clk 0:00:20.6]} 0-1